fUSD/lending_fUSD_20250503
["ID","MTS","AMOUNT","RATE_DAILY","PERIOD"]
[359768155,1746315041139,-450.0,0.0001975,2]
[359768157,1746315041149,-852.66,0.0001975,2]
[359768159,1746315041158,-500.48,0.0001975,2]
[359768161,1746315041168,-450.0,0.0001975,2]
[359768162,1746315041177,-450.0,0.0001975,2]
[359768164,1746315041186,-450.0,0.0001975,2]
[359768165,1746315041195,-474.32117263,0.0001975,2]
[359768166,1746315041205,-573.82,0.0001975,2]
[359768167,1746315041214,-450.0,0.0001975,2]
[359768168,1746315041224,-450.0,0.0001975,2]
[359768169,1746315041234,-735.96,0.0001975,2]
[359768170,1746315041243,-486.85,0.0001975,2]
[359768171,1746315041252,-450.0,0.0001975,2]
[359768172,1746315041262,-450.0,0.0001975,2]
[359768173,1746315041271,-450.0,0.0001975,2]
[359768174,1746315041281,-450.0,0.0001975,2]
[359768175,1746315041290,-703.9,0.0001975,2]
[359768176,1746315041299,-450.0,0.0001975,2]
[359768177,1746315041308,-450.0,0.0001975,2]
[359768178,1746315041318,-544.58,0.0001975,2]
[359768179,1746315041327,-450.0,0.0001975,2]
[359768180,1746315041336,-450.0,0.0001975,2]
[359768181,1746315041345,-495.19,0.0001975,2]
[359768182,1746315041354,-450.0,0.0001975,2]
[359768183,1746315041364,-450.0,0.0001975,2]
[359768184,1746315041373,-450.0,0.0001975,2]
[359768185,1746315041382,-450.0,0.0001975,2]
[359768186,1746315041392,-450.0,0.0001975,2]
[359768187,1746315041401,-450.0,0.0001975,2]
[359768188,1746315041411,-450.0,0.0001975,2]
[359768189,1746315041421,-450.0,0.0001975,2]
[359768190,1746315041430,-578.24594868,0.0001975,2]
[359768191,1746315041443,-580.24640432,0.0001975,2]
[359768192,1746315041453,-450.0,0.0001975,2]
[359768193,1746315041462,-450.0,0.0001975,2]
[359768194,1746315041471,-567.79,0.0001975,2]
[359768195,1746315041482,-450.0,0.0001975,2]
[359768196,1746315041491,-450.0,0.0001975,2]
[359768197,1746315041500,-450.0,0.0001975,2]
[359768198,1746315041510,-746.45,0.0001975,2]
[359768199,1746315041519,-450.0,0.0001975,2]
[359768200,1746315041530,-450.0,0.0001975,2]
[359768201,1746315041539,-450.0,0.0001975,2]
[359768202,1746315041549,-450.0,0.0001975,2]
[359768203,1746315041558,-595.09,0.0001975,2]
[359768204,1746315041567,-450.0,0.0001975,2]
[359768205,1746315041577,-463.88,0.0001975,2]
[359768206,1746315041589,-450.0,0.0001975,2]
[359768207,1746315041598,-450.0,0.0001975,2]
[359768208,1746315041608,-450.0,0.0001975,2]
[359768209,1746315041617,-450.0,0.0001975,2]
[359768210,1746315041626,-450.0,0.0001975,2]
[359768211,1746315041636,-1727.47,0.0001975,2]
[359768212,1746315041645,-450.0,0.0001975,2]
[359768213,1746315041654,-450.0,0.0001975,2]
[359768214,1746315041663,-450.0,0.0001975,2]
[359768215,1746315041673,-450.0,0.0001975,2]
[359768216,1746315041683,-1056.21,0.0001975,2]
[359768217,1746315041692,-450.0,0.0001975,2]
[359768218,1746315041702,-904.05,0.0001975,2]
[359768219,1746315041711,-450.0,0.0001975,2]
[359768220,1746315041721,-450.0,0.0001975,2]
[359768221,1746315041731,-450.0,0.0001975,2]
[359768222,1746315041740,-450.0,0.0001975,2]
[359768223,1746315041750,-450.0,0.0001975,2]
[359768224,1746315041759,-450.0,0.0001975,2]
[359768225,1746315041769,-321.65979655,0.0001975,2]
[359768226,1746315041780,-450.0,0.00019751,2]
[359768227,1746315041789,-450.0,0.00019751,2]
[359768228,1746315041799,-4336.40637951,0.00019761,2]
[359768229,1746315041809,-2910.79859583,0.00019761,2]
[359768230,1746315041819,-500.0,0.00019773,2]
[359768231,1746315041828,-500.0,0.00019773,2]
[359768232,1746315041839,-500.0,0.00019773,2]
[359768233,1746315041848,-274.51510884,0.00019773,2]
[359768234,1746315041857,-500.0,0.00019773,2]
[359768235,1746315041867,-500.0,0.00019773,2]
[359768236,1746315041876,-500.0,0.00019773,2]
[359768237,1746315041886,-500.0,0.00019773,2]
[359768238,1746315041895,-500.0,0.00019773,2]
[359768239,1746315041904,-500.0,0.00019773,2]
[359768240,1746315041914,-163.13082166,0.00019775,2]
[359768241,1746315041923,-4336.40637951,0.00019788,2]
[359768242,1746315041933,-2910.79859583,0.00019789,2]
[359768243,1746315041942,-893.089663,0.00019799,2]
[359768244,1746315041952,-4336.40637951,0.00019816,2]
[359768245,1746315041961,-2910.79859583,0.00019817,2]
[359768246,1746315041971,-4336.40637951,0.00019844,2]
[359768247,1746315041980,-2910.79859583,0.00019844,2]
[359768248,1746315041990,-150.0,0.00019865,2]
[359768249,1746315041999,-150.0,0.00019865,2]
[359768250,1746315042009,-500.0,0.00019865,2]
[359768251,1746315042018,-218.45761307,0.00019865,2]
[359768252,1746315042027,-500.0,0.00019865,2]
[359768253,1746315042037,-500.0,0.00019865,2]
[359768254,1746315042046,-212.70706355,0.00019865,2]
[359768255,1746315042055,-500.0,0.00019865,2]
[359768256,1746315042065,-150.0,0.00019865,2]
[359768257,1746315042074,-500.0,0.00019865,2]
[359768258,1746315042083,-4336.40637951,0.00019872,2]
[359768259,1746315042093,-2910.79859583,0.00019872,2]
[359768260,1746315042103,-612.2993,0.00019873,2]
[359768261,1746315042112,-500.0,0.0001989,2]
[359768262,1746315042122,-951.18760126,0.000199,2]
[359768263,1746315042131,-3774.6723236,0.000199,2]
[359768264,1746315042140,-239.00626639,0.000199,2]
[359768265,1746315042150,-2910.79859583,0.000199,2]
[359768266,1746315042159,-9543.38580179,0.000199,2]
[359768267,1746315042169,-5192.19958789,0.000199,2]
[359768268,1746315042178,-813.16188863,0.000199,2]
[359768269,1746315042187,-32026.55693816,0.000199,2]
[359768270,1746315042197,-442.66176012,0.000199,2]
[359768271,1746315042206,-1151.4198246,0.000199,2]
[359768272,1746315042216,-188.02040314,0.000199,3]
[359768273,1746315042225,-4336.40637951,0.000199,2]
[359768274,1746315042234,-163.13082166,0.000199,2]
[359768275,1746315042244,-2615.357,0.0001997,2]
[359768276,1746315042253,-165.029,0.0001997,2]
[359768277,1746315042263,-344.0,0.00019973,2]
[359768278,1746315042272,-387.7961174,0.00019973,2]
[359768279,1746315042282,-99749.4298501,0.00019986,2]
[359768280,1746315042291,-2959.6624058,0.00019986,2]
[359768281,1746315042300,-4866.3469372,0.00019986,2]
[359768282,1746315042309,-4275.1474011,0.00019986,2]
[359768283,1746315042319,-347.18406264,0.0001999,2]
[359768284,1746315042328,-347.18406264,0.0001999,2]
[359768285,1746315042339,-347.18406264,0.0001999,2]
[359768286,1746315042348,-3864.30705118,0.00019997,2]
[359768287,1746315042357,-180.01628145,0.00019999,2]
[359768288,1746315042366,-500.0,0.00019999,2]
[359768289,1746315042375,-500.0,0.00019999,2]
[359768290,1746315042385,-500.0,0.00019999,2]
[359768291,1746315042395,-500.0,0.00019999,2]
[359768292,1746315042404,-500.0,0.00019999,2]
[359768293,1746315042413,-500.0,0.00019999,2]
[359768294,1746315042422,-157.06046073,0.00019999,2]
[359768295,1746315042432,-500.0,0.00019999,2]
[359768296,1746315042446,-265.68859517,0.00019999,2]
[359768297,1746315042455,-233.28112697,0.00019999,2]
[359768298,1746315042464,-359.94232251,0.00019999,2]
[359768299,1746315042474,-500.0,0.00019999,2]
[359768300,1746315042485,-666.0,0.00019999,2]
[359768301,1746315042494,-500.0,0.00019999,2]
[359768302,1746315042503,-278.61701107,0.00019999,2]
[359768303,1746315042515,-246.37191718,0.00019999,2]
[359768304,1746315042524,-666.0,0.00019999,2]
[359768305,1746315042534,-300.0,0.00019999,2]
[359768306,1746315042543,-461.62,0.00019999,2]
[359768307,1746315042552,-1203.0,0.00019999,2]
[359768308,1746315042561,-880.15254914,0.0002,2]
[359768309,1746315042571,-2524553.00910993,0.0002,2]
[359768310,1746315042581,-1444789.34812837,0.0002,2]
[359768311,1746315042605,-2239.99555988,0.0002,2]
[359768313,1746315042616,-333.81892786,0.0002,2]
[359768339,1746315044910,-37353.88542341,0.0002,2]
[359768340,1746315044925,-6162.73586877,0.0002,2]
[359768341,1746315045549,-450.0,0.00019749,2]
[359768342,1746315045560,-1293.34049812,0.0002,2]
[359768343,1746315045573,-52995.008118,0.0002,2]
[359768344,1746315045592,-40790.544,0.0002,2]
[359768345,1746315045839,-1924.0,0.0002,2]
[359768346,1746315045853,-7097.46681138,0.0002,2]
[359768347,1746315045918,-3863.5602623,0.0002,2]
[359768362,1746315253717,150.050408,0.0003,30]
[359768363,1746315318219,153.23,0.00027425,30]
[359768364,1746315380181,1000.0,0.0003,30]
[359768366,1746315407929,401.4,0.00017033,2]
[359768367,1746315408152,401.4,0.00019297,2]
[359768371,1746315928876,-155.66344872,0.00019518,2]
[359768494,1746315973640,300.0,0.00027397,30]
[359768539,1746316039781,1000.0,0.00018836,2]
[359769000,1746316231656,-984.867624,0.00019518,2]
[359769001,1746316231665,-151.0,0.00019616,2]
[359769002,1746316231675,-111.25029728,0.00019616,2]
[359769003,1746316231694,-55.42970272,0.00019616,2]
[359769004,1746316231703,-1295.91463186,0.00019648,2]
[359769005,1746316231714,-959.69674344,0.00019648,2]
[359769006,1746316231735,-346.23245246,0.00019648,2]
[359769007,1746316231746,-37.04154754,0.00019676,2]
[359769008,1746316231758,-2564.80228016,0.00019676,2]
[359769009,1746316231767,-200.0,0.00019699,2]
[359769010,1746316231776,-1200.0,0.00019703,2]
[359769011,1746316231785,-300.0,0.00019703,2]
[359769012,1746316231795,-798.13837213,0.00019704,2]
[359769013,1746316231843,-590.00001,0.00019704,2]
[359769014,1746316231854,-1213.70544557,0.00019704,2]
[359769015,1746316231864,-306.11363032,0.00019732,2]
[359769016,1746316231957,-2295.73019738,0.00019732,2]
[359769017,1746316231966,-151.0,0.00019736,2]
[359769018,1746316231976,-151.0,0.00019736,2]
[359769019,1746316231985,-668.65185757,0.00019736,2]
[359769020,1746316231995,-207.4,0.00019736,2]
[359769021,1746316232005,-450.0,0.00019747,2]
[359769022,1746316232014,-450.0,0.00019747,2]
[359769023,1746316232023,-450.0,0.00019747,2]
[359769024,1746316232032,-450.0,0.00019747,2]
[359769025,1746316232041,-157.92333282,0.00019747,2]
[359769026,1746316232050,-394.11403619,0.00019747,2]
[359769027,1746316232059,-450.0,0.00019747,2]
[359769028,1746316232069,-450.0,0.00019747,2]
[359769029,1746316232078,-450.0,0.00019747,2]
[359769030,1746316232092,-450.0,0.00019747,2]
[359769031,1746316232101,-450.0,0.00019747,2]
[359769032,1746316232111,-224.36138219,0.00019747,2]
[359769033,1746316232120,-500.0,0.00019747,2]
[359769034,1746316232129,-1897.48,0.00019748,2]
[359769035,1746316232138,-292.4288365,0.00019748,2]
[359769036,1746316232148,-450.0,0.00019748,2]
[359769037,1746316232157,-450.0,0.00019748,2]
[359769038,1746316232167,-450.0,0.00019748,2]
[359769039,1746316232176,-450.0,0.00019748,2]
[359769041,1746316232185,-450.0,0.00019748,2]
[359769043,1746316232194,-560.48,0.00019748,2]
[359769045,1746316232203,-450.0,0.00019748,2]
[359769047,1746316232212,-450.0,0.00019748,2]
[359769049,1746316232221,-450.0,0.00019748,2]
[359769051,1746316232230,-450.0,0.00019748,2]
[359769053,1746316232239,-450.0,0.00019748,2]
[359769055,1746316232248,-450.0,0.00019748,2]
[359769057,1746316232258,-450.0,0.00019748,2]
[359769059,1746316232267,-450.0,0.00019748,2]
[359769061,1746316232275,-307.94111165,0.00019748,2]
[359769063,1746316232284,-450.0,0.00019748,2]
[359769065,1746316232293,-450.0,0.00019748,2]
[359769067,1746316232301,-450.0,0.00019748,2]
[359769069,1746316232310,-450.0,0.00019748,2]
[359769071,1746316232319,-450.0,0.00019748,2]
[359769073,1746316232328,-450.0,0.00019748,2]
[359769074,1746316232336,-500.0,0.00019748,2]
[359769075,1746316232345,-480.61657555,0.00019748,2]
[359769076,1746316232354,-450.0,0.00019748,2]
[359769077,1746316232363,-450.0,0.00019748,2]
[359769078,1746316232372,-185.50934107,0.00019748,2]
[359769079,1746316232381,-450.0,0.00019748,2]
[359769080,1746316232390,-450.0,0.00019748,2]
[359769081,1746316232399,-450.0,0.00019748,2]
[359769082,1746316232408,-500.48,0.00019748,2]
[359769083,1746316232418,-703.9,0.00019748,2]
[359769084,1746316232427,-474.32117263,0.00019748,2]
[359769085,1746316232436,-450.0,0.00019748,2]
[359769086,1746316232445,-450.0,0.00019748,2]
[359769087,1746316232454,-735.96,0.00019748,2]
[359769088,1746316232463,-450.0,0.00019748,2]
[359769089,1746316232472,-450.0,0.00019748,2]
[359769090,1746316232481,-450.0,0.00019748,2]
[359769091,1746316232490,-450.0,0.00019748,2]
[359769092,1746316232499,-544.58,0.00019748,2]
[359769093,1746316232508,-450.0,0.00019748,2]
[359769094,1746316232517,-450.0,0.00019748,2]
[359769095,1746316232526,-495.19,0.00019748,2]
[359769096,1746316232535,-450.0,0.00019748,2]
[359769097,1746316232544,-450.0,0.00019748,2]
[359769098,1746316232553,-450.0,0.00019748,2]
[359769099,1746316232562,-450.0,0.00019748,2]
[359769100,1746316232571,-450.0,0.00019748,2]
[359769101,1746316232580,-541.86,0.00019748,2]
[359769102,1746316232588,-132.69240769,0.00019748,2]
[359769103,1746316232600,-354.88759231,0.00019748,2]
[359769104,1746316232609,-450.0,0.00019748,2]
[359769105,1746316232619,-585.17,0.00019748,2]
[359769106,1746316232628,-450.0,0.00019748,2]
[359769107,1746316232637,-450.0,0.00019748,2]
[359769108,1746316232646,-450.0,0.00019748,2]
[359769109,1746316232656,-717.18,0.00019748,2]
[359769110,1746316232665,-561.6835736,0.00019748,2]
[359769115,1746316237726,-1586.73634563,0.00019747,2]
[359769116,1746316238093,-231.68365437,0.00019747,2]
[359769118,1746316238103,-16.56237508,0.00019748,2]
[359769120,1746316238112,-450.0,0.00019748,2]
[359769122,1746316238122,-580.24640432,0.00019748,2]
[359769124,1746316238132,-795.5,0.00019748,2]
[359769126,1746316238141,-286.55216675,0.00019748,2]
[359769129,1746316238153,-410.63783325,0.00019748,2]
[359769130,1746316238163,-450.0,0.00019748,2]
[359769132,1746316238172,-450.0,0.00019748,2]
[359769134,1746316238182,-567.79,0.00019748,2]
[359769137,1746316238191,-167.96267066,0.00019748,2]
[359769138,1746316238201,-450.0,0.00019748,2]
[359769140,1746316238210,-1005.97,0.00019748,2]
[359769142,1746316238219,-450.0,0.00019748,2]
[359769143,1746316238228,-450.0,0.00019748,2]
[359769145,1746316238238,-570.24,0.00019748,2]
[359769147,1746316238247,-291.22579019,0.00019748,2]
[359769149,1746316238256,-450.0,0.00019748,2]
[359769151,1746316238265,-450.0,0.00019748,2]
[359769153,1746316238274,-450.0,0.00019748,2]
[359769155,1746316238284,-450.0,0.00019748,2]
[359769157,1746316238293,-1150.71,0.00019748,2]
[359769159,1746316238302,-494.72,0.00019748,2]
[359769161,1746316238311,-286.2590851,0.00019748,2]
[359769313,1746316239923,-163.7409149,0.00019748,2]
[359769314,1746316239932,-316.5840851,0.00019748,2]
[359769315,1746316239943,-429.8659149,0.00019748,2]
[359769316,1746316239952,-450.0,0.00019748,2]
[359769317,1746316239962,-450.0,0.00019748,2]
[359769318,1746316239971,-450.0,0.00019748,2]
[359769319,1746316239980,-396.3838841,0.00019748,2]
[359769320,1746316240373,-53.6161159,0.00019748,2]
[359769321,1746316240383,-450.0,0.00019748,2]
[359769322,1746316240393,-502.93,0.00019748,2]
[359769323,1746316240403,-463.88,0.00019748,2]
[359769324,1746316240412,-450.0,0.00019748,2]
[359769325,1746316240421,-450.0,0.00019748,2]
[359769326,1746316240431,-450.0,0.00019748,2]
[359769327,1746316240440,-1978.01,0.00019748,2]
[359769328,1746316240450,-595.09,0.00019748,2]
[359769329,1746316240459,-450.0,0.00019748,2]
[359769330,1746316240468,-631.88,0.00019748,2]
[359769331,1746316240477,-852.66,0.00019748,2]
[359769332,1746316240487,-450.0,0.00019748,2]
[359769333,1746316240496,-450.0,0.00019748,2]
[359769334,1746316240506,-499.06,0.00019748,2]
[359769335,1746316240515,-1786.62,0.00019748,2]
[359769336,1746316240524,-450.0,0.00019748,2]
[359769337,1746316240534,-450.0,0.00019748,2]
[359769338,1746316240543,-450.0,0.00019748,2]
[359769339,1746316240552,-450.0,0.00019748,2]
[359769340,1746316240561,-450.0,0.00019748,2]
[359769341,1746316240569,-1727.47,0.00019748,2]
[359769342,1746316240578,-486.85,0.00019748,2]
[359769343,1746316240588,-450.0,0.00019748,2]
[359769344,1746316240598,-450.0,0.00019748,2]
[359769345,1746316240607,-450.0,0.00019748,2]
[359769346,1746316240616,-450.0,0.00019748,2]
[359769347,1746316240625,-450.0,0.00019748,2]
[359769348,1746316240635,-1056.21,0.00019748,2]
[359769349,1746316240644,-450.0,0.00019748,2]
[359769350,1746316240654,-450.0,0.00019748,2]
[359769351,1746316240663,-450.0,0.00019748,2]
[359769352,1746316240673,-904.05,0.00019748,2]
[359769353,1746316240683,-450.0,0.00019748,2]
[359769354,1746316240693,-450.0,0.00019748,2]
[359769355,1746316240702,-450.0,0.00019748,2]
[359769356,1746316240712,-450.0,0.00019748,2]
[359769357,1746316240722,-450.0,0.00019748,2]
[359769358,1746316240731,-450.0,0.00019749,2]
[359769359,1746316240740,-450.0,0.00019749,2]
[359769360,1746316240750,-500.0,0.00019752,2]
[359769361,1746316240759,-500.0,0.00019752,2]
[359769362,1746316240768,-500.0,0.00019752,2]
[359769363,1746316240777,-150.0,0.00019752,2]
[359769364,1746316240787,-212.70706355,0.00019752,2]
[359769365,1746316240796,-500.0,0.00019752,2]
[359769366,1746316240805,-150.0,0.00019752,2]
[359769367,1746316240815,-500.0,0.00019752,2]
[359769368,1746316240824,-150.0,0.00019752,2]
[359769369,1746316240833,-218.45761307,0.00019752,2]
[359769370,1746316240843,-2601.8438277,0.0001976,2]
[359769371,1746316240852,-576.66609207,0.00019787,2]
[359769372,1746316240862,-1000.0,0.00019787,2]
[359769373,1746316240872,-2601.8438277,0.00019788,2]
[359769374,1746316240881,-163.13082166,0.0001979,2]
[359769375,1746316240891,-893.089663,0.00019799,2]
[359769376,1746316240901,-2601.8438277,0.00019816,2]
[359769377,1746316240910,-500.0,0.00019836,2]
[359769378,1746316240920,-2601.8438277,0.00019844,2]
[359769379,1746316240929,-7304.78668135,0.00019858,2]
[359769380,1746316240938,-7304.78668134,0.00019863,2]
[359769381,1746316240948,-7304.78668134,0.00019867,2]
[359769382,1746316240957,-2601.8438277,0.00019872,2]
[359769383,1746316240967,-7304.78668134,0.00019872,2]
[359769384,1746316240976,-500.0,0.00019873,2]
[359769385,1746316240986,-500.0,0.00019873,2]
[359769386,1746316240995,-500.0,0.00019873,2]
[359769387,1746316241005,-500.0,0.00019873,2]
[359769388,1746316241014,-500.0,0.00019873,2]
[359769389,1746316241023,-274.51510884,0.00019873,2]
[359769390,1746316241033,-500.0,0.00019873,2]
[359769391,1746316241043,-500.0,0.00019873,2]
[359769392,1746316241052,-7304.78668134,0.00019877,2]
[359769393,1746316241062,-7304.78668134,0.00019881,2]
[359769394,1746316241071,-450.0,0.00019885,2]
[359769395,1746316241080,-7304.78668134,0.00019886,2]
[359769396,1746316241090,-236.94184784,0.00019886,2]
[359769397,1746316241099,-450.0,0.00019887,2]
[359769398,1746316241108,-450.0,0.00019887,2]
[359769399,1746316241118,-450.0,0.00019887,2]
[359769400,1746316241127,-450.0,0.00019887,2]
[359769401,1746316241136,-450.0,0.00019887,2]
[359769402,1746316241146,-783.46,0.00019887,2]
[359769403,1746316241155,-450.0,0.00019887,2]
[359769404,1746316241165,-450.0,0.00019887,2]
[359769405,1746316241174,-450.0,0.00019887,2]
[359769406,1746316241183,-450.0,0.00019887,2]
[359769407,1746316241192,-450.0,0.00019887,2]
[359769408,1746316241202,-740.3,0.00019887,2]
[359769409,1746316241211,-972.41,0.00019887,2]
[359769410,1746316241221,-450.0,0.00019887,2]
[359769411,1746316241230,-450.0,0.00019887,2]
[359769412,1746316241240,-450.0,0.00019887,2]
[359769413,1746316241249,-450.0,0.00019887,2]
[359769414,1746316241258,-64325.87,0.00019887,2]
[359769415,1746316241268,-450.0,0.00019887,2]
[359769416,1746316241277,-450.0,0.00019887,2]
[359769417,1746316241286,-462.36,0.00019887,2]
[359769418,1746316241295,-626.08,0.00019887,2]
[359769419,1746316241304,-450.0,0.00019887,2]
[359769420,1746316241313,-450.0,0.00019887,2]
[359769421,1746316241322,-450.0,0.00019887,2]
[359769422,1746316241332,-2933.75,0.00019887,2]
[359769423,1746316241341,-2840.68,0.00019887,2]
[359769424,1746316241350,-450.0,0.00019887,2]
[359769425,1746316241359,-450.0,0.00019887,2]
[359769426,1746316241368,-1354.21,0.00019887,2]
[359769427,1746316241378,-450.0,0.00019887,2]
[359769428,1746316241389,-688.82,0.00019887,2]
[359769429,1746316241399,-462.31,0.00019887,2]
[359769430,1746316241407,-1574.53,0.00019887,2]
[359769431,1746316241417,-618.51,0.00019887,2]
[359769432,1746316241426,-450.0,0.00019887,2]
[359769433,1746316241435,-707.73,0.00019887,2]
[359769434,1746316241444,-3738.18,0.00019887,2]
[359769435,1746316241453,-533.5,0.00019887,2]
[359769436,1746316241463,-236.94184781,0.00019888,2]
[359769437,1746316241472,-363.03651344,0.00019889,2]
[359769438,1746316241481,-450.0,0.00019889,2]
[359769439,1746316241490,-450.0,0.00019889,2]
[359769440,1746316241499,-450.0,0.00019889,2]
[359769441,1746316241509,-450.0,0.00019889,2]
[359769442,1746316241518,-1173.42,0.00019889,2]
[359769443,1746316241528,-552.44,0.00019889,2]
[359769444,1746316241537,-450.0,0.00019889,2]
[359769445,1746316241547,-1304.54,0.00019889,2]
[359769446,1746316241556,-340.66842276,0.00019889,2]
[359769447,1746316241565,-474.8,0.00019889,2]
[359769448,1746316241575,-2905.94,0.00019889,2]
[359769449,1746316241585,-380.4071134,0.00019889,2]
[359769450,1746316241594,-450.0,0.00019889,2]
[359769451,1746316241603,-450.0,0.00019889,2]
[359769452,1746316241613,-713.8,0.00019889,2]
[359769453,1746316241627,-450.0,0.00019889,2]
[359769454,1746316241636,-236.94184781,0.00019889,2]
[359769455,1746316241646,-429.69061631,0.0001989,2]
[359769456,1746316241655,-450.0,0.0001989,2]
[359769457,1746316241664,-450.0,0.0001989,2]
[359769458,1746316241673,-535.4,0.0001989,2]
[359769459,1746316241682,-450.0,0.0001989,2]
[359769460,1746316241692,-450.0,0.0001989,2]
[359769461,1746316241701,-450.0,0.0001989,2]
[359769462,1746316241711,-450.0,0.0001989,2]
[359769463,1746316241720,-450.0,0.0001989,2]
[359769464,1746316241730,-450.0,0.0001989,2]
[359769465,1746316241739,-450.0,0.0001989,2]
[359769466,1746316241749,-450.0,0.0001989,2]
[359769467,1746316241758,-450.0,0.0001989,2]
[359769468,1746316241767,-450.0,0.0001989,2]
[359769469,1746316241777,-450.0,0.0001989,2]
[359769470,1746316241787,-450.0,0.0001989,2]
[359769471,1746316241796,-450.0,0.0001989,2]
[359769472,1746316241805,-450.0,0.0001989,2]
[359769473,1746316241815,-450.0,0.0001989,2]
[359769474,1746316241824,-450.0,0.0001989,2]
[359769475,1746316241834,-961.46,0.0001989,2]
[359769476,1746316241843,-450.0,0.0001989,2]
[359769477,1746316241852,-450.0,0.0001989,2]
[359769478,1746316241862,-450.0,0.0001989,2]
[359769479,1746316241871,-450.0,0.0001989,2]
[359769480,1746316241880,-450.0,0.0001989,2]
[359769481,1746316241889,-450.0,0.0001989,2]
[359769482,1746316241899,-450.0,0.0001989,2]
[359769483,1746316241908,-4538.07,0.0001989,2]
[359769484,1746316241917,-450.0,0.0001989,2]
[359769485,1746316241926,-3139.16,0.0001989,2]
[359769486,1746316241935,-450.0,0.0001989,2]
[359769487,1746316241945,-1769.42,0.0001989,2]
[359769488,1746316241954,-450.0,0.0001989,2]
[359769489,1746316241963,-450.0,0.0001989,2]
[359769490,1746316241973,-3146.48,0.0001989,2]
[359769491,1746316241982,-450.0,0.0001989,2]
[359769492,1746316241991,-450.0,0.0001989,2]
[359769493,1746316242001,-545.59,0.0001989,2]
[359769494,1746316242010,-450.0,0.0001989,2]
[359769495,1746316242020,-66174.5,0.0001989,2]
[359769496,1746316242030,-450.0,0.0001989,2]
[359769497,1746316242039,-1165.34,0.0001989,2]
[359769498,1746316242049,-450.0,0.0001989,2]
[359769499,1746316242058,-479.03,0.0001989,2]
[359769500,1746316242067,-2931.73,0.0001989,2]
[359769501,1746316242076,-1254.45,0.0001989,2]
[359769502,1746316242086,-450.0,0.0001989,2]
[359769503,1746316242096,-14440.76,0.0001989,2]
[359769504,1746316242106,-450.0,0.0001989,2]
[359769505,1746316242118,-1058.23,0.0001989,2]
[359769506,1746316242127,-450.0,0.0001989,2]
[359769507,1746316242139,-450.0,0.0001989,2]
[359769508,1746316242149,-9034.21,0.0001989,2]
[359769509,1746316242158,-450.0,0.0001989,2]
[359769510,1746316242167,-640.33,0.0001989,2]
[359769511,1746316242176,-450.0,0.0001989,2]
[359769512,1746316242185,-561.36,0.0001989,2]
[359769513,1746316242195,-535.47356475,0.0001989,2]
[359769514,1746316242204,-450.0,0.0001989,2]
[359769515,1746316242213,-450.0,0.0001989,2]
[359769516,1746316242222,-450.0,0.0001989,2]
[359769517,1746316242231,-450.0,0.0001989,2]
[359769518,1746316242241,-450.0,0.0001989,2]
[359769519,1746316242251,-999.43,0.0001989,2]
[359769520,1746316242261,-450.0,0.0001989,2]
[359769521,1746316242270,-450.0,0.0001989,2]
[359769522,1746316242279,-491.02,0.0001989,2]